bitfinex/quotes_BTCUSD_20251012
["timestamp","ask_amount","ask_price","bid_price","bid_amount"]
[1760303553895,0.00236673,115200.0,115190.0,0.47248201]
[1760303554105,0.00236673,115200.0,115190.0,0.47219734]
[1760303554316,0.51463514,115200.0,115190.0,0.27251618]
[1760303554522,0.00782673,115200.0,115190.0,0.30238757]
[1760303554720,0.00236673,115200.0,115190.0,0.30238757]
[1760303555009,0.00236673,115200.0,115190.0,0.30210391]
[1760303555238,0.34236673,115200.0,115190.0,0.30181998]
[1760303555438,0.84917514,115200.0,115190.0,0.30081998]
[1760303555675,0.34236673,115200.0,115190.0,0.30053897]
[1760303555878,0.34719673,115200.0,115190.0,0.30025249]
[1760303556080,0.34719673,115200.0,115190.0,0.29997024]
[1760303556395,0.35537673,115200.0,115190.0,0.29968537]
[1760303556602,0.35537673,115200.0,115190.0,0.30068537]
[1760303556970,0.35537673,115200.0,115190.0,0.30040209]
[1760303557169,0.35537673,115200.0,115190.0,0.30011768]
[1760303557359,0.35537673,115200.0,115190.0,0.29983108]
[1760303557559,0.35537673,115200.0,115190.0,0.29883108]
[1760303557719,0.35537673,115200.0,115190.0,0.2985446]
[1760303557925,0.35537673,115200.0,115190.0,0.29825808]
[1760303558217,0.35537673,115200.0,115190.0,0.25116808]
[1760303558430,0.35537673,115200.0,115190.0,0.25088091]
[1760303558633,0.35537673,115200.0,115190.0,0.29524429]
[1760303558836,0.35537673,115200.0,115190.0,0.29624429]
[1760303559049,0.35537673,115200.0,115190.0,0.29595796]
[1760303559247,0.52898784,115200.0,115190.0,0.17433997]
[1760303559462,0.86218514,115200.0,115190.0,0.20542997]
[1760303559665,0.52898784,115200.0,115190.0,0.20514123]
[1760303559892,0.52898784,115200.0,115190.0,0.20485127]
[1760303560093,0.35537673,115200.0,115190.0,0.22776127]
[1760303560303,0.86218514,115200.0,115190.0,0.22747105]
[1760303560502,0.86218514,115200.0,115190.0,0.22718119]
[1760303560732,1.03579625,115200.0,115190.0,0.22718119]
[1760303561431,0.86218514,115200.0,115190.0,0.22718119]
[1760303561629,0.00719673,115200.0,115190.0,0.22718119]
[1760303561836,0.34236673,115200.0,115190.0,0.27183119]
[1760303562704,0.00236673,115200.0,115190.0,0.27183119]
[1760303563454,0.00236673,115200.0,115190.0,0.94896722]
[1760303563668,0.0002,115210.0,115200.0,0.68041952]
[1760303563870,0.00024958,115210.0,115200.0,0.83656904]
[1760303564048,0.00024958,115210.0,115200.0,0.86625904]
[1760303564263,0.00024958,115210.0,115200.0,0.44816997]
[1760303565296,0.00024958,115210.0,115200.0,0.36045063]
[1760303568118,0.00024958,115210.0,115200.0,0.86725904]
[1760303569366,0.00080635,115210.0,115200.0,0.86725904]
[1760303570655,0.00080635,115210.0,115200.0,0.87245904]
[1760303571713,1e-08,115210.0,115200.0,1.40941935]
[1760303571920,1e-08,115210.0,115200.0,1.49813869]
[1760303572358,1e-08,115220.0,115200.0,1.49813869]
[1760303572603,0.0002,115240.0,115230.0,0.17356591]
[1760303572809,0.0002,115240.0,115230.0,0.79181384]
[1760303572810,0.00024956,115240.0,115230.0,0.79181384]
[1760303573019,0.00191938,115240.0,115230.0,0.86420384]
[1760303573226,0.00191938,115240.0,115230.0,0.98307508]
[1760303573430,0.00191938,115240.0,115230.0,1.00916821]
[1760303573892,0.00191938,115240.0,115230.0,0.32411094]
[1760303574104,0.00191938,115240.0,115230.0,0.29801781]
[1760303574520,0.00191938,115240.0,115230.0,0.30001781]
[1760303574946,0.00191938,115240.0,115230.0,0.29801781]
[1760303575356,0.00191938,115240.0,115230.0,0.29901781]
[1760303575568,0.00191938,115240.0,115230.0,0.35079251]
[1760303575770,0.00191938,115240.0,115230.0,0.39247251]
[1760303575974,0.00191938,115240.0,115230.0,0.39218834]
[1760303576181,0.00191938,115240.0,115230.0,0.39190543]
[1760303576550,0.00191938,115240.0,115230.0,0.39162282]
[1760303576754,0.00191938,115240.0,115230.0,0.39133897]
[1760303577155,0.00191938,115240.0,115230.0,0.39105417]
[1760303577621,0.00191938,115240.0,115230.0,0.33870928]
[1760303577798,0.00191938,115240.0,115230.0,0.33842629]
[1760303578260,0.00191938,115240.0,115230.0,0.33814352]
[1760303578488,0.17547023,115240.0,115230.0,0.1230619]
[1760303578703,1.04470864,115240.0,115230.0,0.04268]
[1760303578926,1.04470864,115240.0,115230.0,0.0423962]
[1760303579172,1.04470864,115240.0,115230.0,0.04211552]
[1760303579382,5.23670664,115240.0,115230.0,0.04183522]
[1760303579594,5.26545889,115240.0,115230.0,0.04183522]
[1760303579799,5.26545889,115240.0,115230.0,0.04155289]
[1760303580013,5.26545889,115240.0,115230.0,0.04127051]
[1760303580408,5.26545889,115240.0,115230.0,0.04098696]
[1760303580618,5.26545889,115240.0,115230.0,0.04070098]
[1760303580831,5.23670664,115240.0,115230.0,0.04070098]
[1760303581039,5.23670664,115240.0,115230.0,0.04041921]
[1760303581264,5.23670664,115240.0,115230.0,0.0401376]
[1760303581495,5.23670664,115240.0,115230.0,0.03985601]
[1760303581703,5.22807664,115240.0,115230.0,0.03985601]
[1760303581920,5.23670664,115240.0,115230.0,0.21313665]
[1760303582125,5.23670664,115240.0,115230.0,0.21285567]
[1760303582535,5.23670664,115240.0,115230.0,0.21257531]
[1760303582759,5.23670664,115240.0,115230.0,0.21229542]
[1760303582967,5.23670664,115240.0,115230.0,0.03872951]
[1760303583179,5.23670664,115240.0,115230.0,0.03844957]
[1760303583386,5.23670664,115240.0,115230.0,0.0381699]
[1760303583604,1.45382019,115240.0,115230.0,0.60083885]
[1760303583832,0.02358088,115360.0,115350.0,0.425]
[1760303584057,0.03136118,115390.0,115380.0,3.62199689]
[1760303584272,0.0002,115420.0,115410.0,3.79529209]
[1760303584487,0.0006969,115420.0,115410.0,4.90890891]
[1760303584710,0.0002,115430.0,115420.0,3.89527708]
[1760303584928,0.001,115480.0,115440.0,5.41567229]
[1760303585173,0.001,115480.0,115470.0,4.78381887]
[1760303585468,5.0,115500.0,115490.0,0.66832704]
[1760303585690,5.00014908,115500.0,115490.0,1.43661035]
[1760303585910,5.00014908,115500.0,115490.0,4.48275835]
[1760303586129,4.5166005,115500.0,115490.0,4.55225735]
[1760303586346,4.35373347,115500.0,115490.0,4.56024524]
[1760303586555,4.35373347,115500.0,115490.0,4.58524524]
[1760303586766,4.35373347,115500.0,115490.0,4.56024524]
[1760303587199,4.35373347,115500.0,115490.0,3.80804396]
[1760303587413,4.35373347,115500.0,115490.0,0.69239696]
[1760303588054,4.06034521,115500.0,115490.0,1.46291363]
[1760303588279,4.06034521,115500.0,115490.0,4.65647442]
[1760303588499,4.06034521,115500.0,115490.0,3.90427314]
[1760303588712,4.06034521,115500.0,115490.0,4.65647442]
[1760303588950,4.06034521,115500.0,115490.0,4.46673263]
[1760303589200,3.45944538,115500.0,115490.0,4.85581884]
[1760303589422,3.20307296,115500.0,115490.0,4.79509015]
[1760303589660,3.02408529,115500.0,115490.0,4.04288887]
[1760303589897,2.87333212,115500.0,115490.0,4.79509015]
[1760303590120,2.65668946,115500.0,115490.0,4.79309015]
[1760303590339,2.43151423,115500.0,115490.0,4.83231232]
[1760303590551,2.26103641,115500.0,115490.0,4.83231232]
[1760303590763,2.17026868,115500.0,115490.0,4.83031232]
[1760303591198,1.67805074,115500.0,115490.0,4.81791129]
[1760303591408,1.5512569,115500.0,115490.0,4.78784817]
[1760303591620,1.34612318,115500.0,115490.0,4.83305823]
[1760303591828,1.25826138,115500.0,115490.0,4.83305823]
[1760303592042,1.23226125,115500.0,115490.0,4.83305823]
[1760303592262,0.53854434,115500.0,115490.0,4.89690695]
[1760303592477,0.25857961,115500.0,115490.0,4.912672]
[1760303592719,0.16155969,115500.0,115490.0,5.01267199]
[1760303592997,0.11972267,115500.0,115490.0,5.01267199]
[1760303593184,0.0019,115550.0,115540.0,0.32799801]
[1760303593402,1e-08,115550.0,115540.0,4.34477323]
[1760303593622,1e-08,115550.0,115540.0,4.68477323]
[1760303594048,0.09127707,115620.0,115610.0,0.19774131]
[1760303594270,1.91466601,115620.0,115610.0,0.04082793]
[1760303594479,1.84539894,115620.0,115610.0,0.01608203]
[1760303594905,1.43319766,115620.0,115610.0,0.14082792]
[1760303595114,1.43319766,115620.0,115610.0,0.04082793]
[1760303595332,0.05026866,115620.0,115610.0,0.04082793]
[1760303595542,0.02215866,115620.0,115610.0,0.32680333]
[1760303595758,0.00014866,115620.0,115610.0,0.50076475]
[1760303596178,0.00014866,115620.0,115610.0,1.25296603]
[1760303596643,0.06995,115670.0,115610.0,1.25296603]
[1760303596644,0.02381,115670.0,115660.0,0.29766651]
[1760303596904,0.00229518,115670.0,115660.0,0.18197792]
[1760303597109,0.00229518,115670.0,115660.0,0.44442806]
[1760303597333,0.00229518,115670.0,115660.0,0.47457996]
[1760303598468,0.00229518,115670.0,115660.0,0.50038996]
[1760303599333,7e-05,115680.0,115670.0,0.98000475]
[1760303599582,0.00021843,115680.0,115670.0,0.45693501]
[1760303599791,0.00040198,115680.0,115670.0,0.49456501]
[1760303600257,0.04834329,115730.0,115720.0,0.19757687]
[1760303600494,0.04834329,115730.0,115720.0,0.0247459]
[1760303600495,0.91446295,115730.0,115720.0,0.0247459]
[1760303600705,1.94557993,115730.0,115720.0,0.0247459]
[1760303600940,2.28557993,115730.0,115720.0,0.12474589]
[1760303602013,0.4661,115720.0,115710.0,0.09999999]
[1760303602233,0.56202,115720.0,115700.0,0.0663459]
[1760303602442,0.56202,115720.0,115700.0,0.08172492]
[1760303602443,0.37207,115710.0,115700.0,0.08172492]
[1760303602655,0.37207,115710.0,115700.0,0.18172491]
[1760303602866,0.03207,115720.0,115710.0,0.12474589]
[1760303603085,0.03207,115720.0,115710.0,0.14012491]
[1760303603305,0.03207,115720.0,115710.0,0.32580081]
[1760303603522,0.89196128,115720.0,115710.0,0.14012491]
[1760303603742,1.16811128,115720.0,115710.0,0.14012491]
[1760303603954,1.16811128,115720.0,115710.0,0.01537902]
[1760303603955,2.31746962,115720.0,115710.0,0.01537902]
[1760303604170,1.476549,115720.0,115710.0,0.01537902]
[1760303604414,2.22875028,115720.0,115710.0,0.01537902]
[1760303604699,0.47976,115720.0,115710.0,0.01537902]
[1760303604914,0.47976,115720.0,115710.0,0.35060081]
[1760303604915,0.34,115720.0,115710.0,0.35060081]
[1760303605136,0.02250167,115730.0,115720.0,0.32772876]
[1760303605363,0.02250167,115730.0,115720.0,0.27263633]
[1760303605584,0.02250167,115730.0,115720.0,0.4830973]
[1760303605796,0.77470295,115730.0,115720.0,0.4454673]
[1760303606009,1.11470295,115730.0,115720.0,0.4454673]
[1760303606237,0.36250167,115730.0,115720.0,0.27263633]
[1760303606443,1.14677295,115730.0,115720.0,0.27263633]
[1760303606898,1.25446295,115730.0,115720.0,0.14012491]
[1760303607388,0.43841167,115730.0,115720.0,0.17775491]
[1760303607619,0.43841167,115730.0,115720.0,0.14012491]
[1760303608093,0.36250167,115730.0,115720.0,0.19058491]
[1760303608329,0.36250167,115730.0,115720.0,0.32578588]
[1760303608558,0.37083873,115730.0,115720.0,0.36341588]
[1760303608767,1.26280001,115730.0,115720.0,0.14012491]
[1760303609207,1.26280001,115730.0,115720.0,0.04012492]
[1760303609424,0.144717,115710.0,115700.0,0.14159999]
[1760303609692,1.1602435,115710.0,115700.0,0.14159999]
[1760303609924,1.3330894,115710.0,115700.0,0.0416]
[1760303610149,1.0155265,115710.0,115700.0,0.0416]
[1760303610364,1.0155265,115710.0,115700.0,0.14159999]
[1760303610365,0.9516765,115710.0,115700.0,0.14159999]
[1760303610790,1.0155265,115710.0,115700.0,0.14159999]
[1760303611275,0.5678365,115720.0,115710.0,0.09999999]
[1760303611522,0.6116765,115720.0,115710.0,0.27284589]
[1760303611734,0.6116765,115720.0,115710.0,0.30105589]
[1760303611735,0.9078365,115720.0,115710.0,0.30105589]
[1760303611982,0.8757665,115720.0,115710.0,0.52694731]
[1760303612194,0.55826817,115730.0,115720.0,0.30298286]
[1760303612415,0.02250167,115730.0,115720.0,0.49872238]
[1760303612634,0.02250167,115730.0,115720.0,0.51671111]
[1760303612861,0.02250167,115730.0,115720.0,0.34388014]
[1760303613076,0.36250167,115730.0,115720.0,0.45307111]
[1760303613293,0.35212026,115730.0,115720.0,0.49793027]
[1760303613536,0.01212026,115730.0,115720.0,0.56157027]
[1760303613745,0.01212026,115730.0,115720.0,0.49793027]
[1760303613950,0.01212026,115730.0,115720.0,0.3250993]
[1760303614164,0.35212026,115730.0,115720.0,0.2825293]
[1760303614374,0.35212026,115730.0,115720.0,0.28024014]
[1760303614586,0.30540257,115730.0,115720.0,0.5774398]
[1760303614821,0.30540257,115730.0,115720.0,0.51671111]
[1760303615028,0.30540257,115730.0,115720.0,0.56201047]
[1760303615238,0.30540257,115730.0,115720.0,0.51671111]
[1760303615452,0.31373963,115730.0,115720.0,0.34388014]
[1760303615666,0.31373963,115730.0,115720.0,0.51671111]
[1760303615899,0.31373963,115730.0,115720.0,0.45307111]
[1760303616150,0.30973963,115730.0,115720.0,0.5774398]
[1760303616358,0.00833706,115730.0,115720.0,0.51382403]
[1760303616842,0.00833706,115730.0,115720.0,0.57746403]
[1760303617064,0.00833706,115730.0,115720.0,0.57741652]
[1760303617290,0.00833706,115730.0,115720.0,0.51671111]
[1760303617513,0.00833706,115730.0,115720.0,0.5926249]
[1760303618179,0.00833706,115730.0,115720.0,0.51671111]
[1760303619236,0.34833706,115730.0,115720.0,0.28024014]
[1760303619461,0.00833706,115730.0,115720.0,0.5926249]
[1760303619701,0.00833706,115730.0,115720.0,0.51671111]
[1760303620153,0.00833706,115730.0,115720.0,0.57769148]
[1760303620376,0.00833706,115730.0,115720.0,0.51671111]
[1760303621040,0.02508201,115750.0,115740.0,0.32795298]
[1760303621266,0.09523393,115820.0,115790.0,0.0301519]
[1760303621486,0.09572862,115820.0,115810.0,0.13015189]
[1760303621702,0.68143826,115820.0,115810.0,0.09999999]
[1760303621925,0.13460849,115820.0,115810.0,0.18952951]
[1760303622139,0.07075849,115820.0,115810.0,0.18952951]
[1760303622351,0.04527528,115830.0,115820.0,0.09999999]
[1760303622595,0.03931815,115830.0,115820.0,0.39236315]
[1760303622811,0.68888015,115830.0,115820.0,0.18952951]
[1760303623253,0.08520781,115830.0,115820.0,0.16297999]
[1760303623475,1.336789,115820.0,115810.0,0.02287315]
[1760303623713,0.34,115820.0,115800.0,0.08277068]
[1760303623991,0.9090965,115820.0,115810.0,0.02287315]
[1760303624204,1.18596824,115820.0,115810.0,0.02287315]
[1760303625065,0.41463,115820.0,115800.0,0.05227315]
[1760303625286,0.65020174,115820.0,115810.0,0.02287315]
[1760303625501,1.28168306,115820.0,115810.0,0.02287315]
[1760303625728,0.17269665,115810.0,115800.0,0.02287315]
[1760303625941,0.74179315,115810.0,115800.0,0.02287315]
[1760303626163,0.84598315,115810.0,115800.0,0.02287315]
[1760303626380,2.72657266,115810.0,115800.0,0.02287315]
[1760303626601,1.50950057,115800.0,115790.0,0.02287315]
[1760303626828,2.62239758,115800.0,115790.0,0.02287315]
[1760303627045,1.50951548,115790.0,115770.0,0.03049753]
[1760303627259,1.50954532,115770.0,115760.0,0.14568196]
[1760303627494,1.18604282,115770.0,115760.0,0.03066859]
[1760303627745,1.50956025,115760.0,115730.0,0.0457463]
[1760303627932,0.51281603,115730.0,115720.0,0.06099506]
[1760303628149,0.51283097,115720.0,115710.0,0.00099999]
[1760303628360,1.14481747,115720.0,115710.0,0.00149468]
[1760303628578,1.18902747,115720.0,115710.0,0.00149468]
[1760303629018,2.18081647,115720.0,115710.0,0.00149468]
[1760303629664,0.335,115720.0,115710.0,0.00149468]
[1760303630569,0.5690965,115730.0,115710.0,0.27814964]
[1760303630786,0.5690965,115740.0,115710.0,0.3989701]
[1760303631001,0.03333,115740.0,115720.0,0.29594592]
[1760303631214,0.03333,115740.0,115720.0,0.10832952]
[1760303631388,0.37333,115740.0,115720.0,0.29312785]
[1760303631605,0.5690965,115750.0,115730.0,0.17281603]
[1760303631780,0.80824824,115760.0,115730.0,0.16247952]
[1760303631985,0.80824824,115760.0,115730.0,0.12113952]
[1760303631986,0.6354765,115750.0,115730.0,0.12113952]
[1760303632186,0.07766,115740.0,115710.0,0.2447436]
[1760303632511,0.07766,115740.0,115720.0,0.12113952]
[1760303632707,0.03345,115740.0,115720.0,0.29396715]
[1760303633031,0.80828812,115740.0,115720.0,0.08952952]
[1760303633240,0.78624253,115730.0,115710.0,0.03310468]
[1760303633447,0.85250253,115730.0,115710.0,0.09002421]
[1760303633661,0.17283097,115720.0,115710.0,0.00049469]
[1760303633864,0.27254097,115720.0,115710.0,0.00049469]
[1760303634072,0.31675097,115720.0,115710.0,0.00049469]
[1760303634280,1.19251747,115720.0,115710.0,0.00049469]
[1760303634498,2.27802581,115720.0,115710.0,0.00049469]
[1760303635229,2.18904647,115720.0,115710.0,0.00049469]
[1760303635701,1.19225747,115720.0,115710.0,0.00049469]
[1760303635917,2.18904647,115720.0,115710.0,0.00049469]
[1760303636584,0.5128459,115710.0,115700.0,0.00099999]
[1760303636829,1.6178289,115710.0,115700.0,0.00114836]
[1760303637035,2.74754724,115710.0,115700.0,0.00114836]
[1760303637253,2.81380724,115710.0,115700.0,1e-08]
[1760303637472,1.6535549,115710.0,115700.0,1e-08]
[1760303637693,2.7250879,115710.0,115700.0,1e-08]
[1760303638130,2.7210879,115710.0,115700.0,1e-08]
[1760303638970,1.6495549,115710.0,115700.0,1e-08]
[1760303639179,2.1853214,115710.0,115700.0,1e-08]
[1760303640696,1.8453214,115710.0,115700.0,1e-08]
[1760303641115,2.1853214,115710.0,115700.0,1e-08]
[1760303641327,2.27404074,115710.0,115700.0,1e-08]
[1760303641560,2.1853214,115710.0,115700.0,1e-08]
[1760303642618,0.18153326,115690.0,115640.0,0.10562403]
[1760303642843,0.18153326,115690.0,115640.0,0.00049518]
[1760303642844,0.07766,115650.0,115640.0,0.00049518]
[1760303643303,0.6134265,115650.0,115640.0,0.00049518]
[1760303643507,0.6134265,115650.0,115600.0,0.0004]
[1760303643508,2.76025792,115650.0,115600.0,0.0004]
[1760303643716,2.07900091,115610.0,115600.0,0.00054843]
[1760303643928,1.08221191,115610.0,115600.0,0.00054843]
[1760303644146,1.19268191,115610.0,115600.0,0.00054843]
[1760303644799,2.18947091,115610.0,115600.0,0.00054843]
[1760303645016,0.41766,115610.0,115600.0,0.00054843]
[1760303645231,0.20643139,115620.0,115600.0,0.02341843]
[1760303645442,0.75297191,115610.0,115600.0,0.00054843]
[1760303645652,0.85268191,115610.0,115600.0,0.00054843]
[1760303646288,0.25065541,115610.0,115600.0,0.00054843]
[1760303646494,0.78642191,115610.0,115600.0,0.00054843]
[1760303646776,0.85268191,115610.0,115600.0,0.00054843]
[1760303647492,2.18947091,115610.0,115600.0,0.00054843]
[1760303647704,1.65370441,115610.0,115600.0,0.00054843]
[1760303647913,1.19268191,115610.0,115600.0,0.00054843]
[1760303648122,0.65691541,115610.0,115600.0,0.00054843]
[1760303648340,1.19268191,115610.0,115600.0,0.00054843]
[1760303649042,0.48392,115610.0,115600.0,0.00054843]
[1760303649280,0.5692165,115620.0,115600.0,0.32047833]
[1760303649481,0.10271707,115640.0,115620.0,0.17298045]
[1760303649724,0.60503357,115640.0,115630.0,0.02287]
[1760303649939,0.14392,115640.0,115610.0,0.18904399]
[1760303650138,0.6796865,115640.0,115610.0,0.28722328]
[1760303650365,0.5692165,115630.0,115610.0,0.10557952]
[1760303650770,0.5692165,115630.0,115610.0,0.27857416]
[1760303651003,0.5692165,115630.0,115600.0,0.19825932]
[1760303651004,0.5692165,115620.0,115600.0,0.01659843]
[1760303651214,0.03345,115620.0,115600.0,0.27913788]
[1760303651418,0.5692165,115620.0,115600.0,0.27913788]
[1760303651626,0.5692165,115620.0,115600.0,0.09007795]
[1760303651627,0.5357665,115610.0,115600.0,0.09007795]
[1760303651865,0.85268191,115610.0,115600.0,0.00054843]
[1760303652087,1.19268191,115610.0,115600.0,0.00054843]
[1760303652485,2.18947091,115610.0,115600.0,0.00054843]
[1760303653108,2.72523741,115610.0,115600.0,0.00054843]
[1760303653316,0.34,115570.0,115560.0,0.0004]
[1760303653518,1.08227179,115570.0,115560.0,0.00054866]
[1760303653732,2.18953079,115570.0,115560.0,0.00054866]
[1760303654165,0.37345,115570.0,115560.0,0.00054866]
[1760303654403,0.34,115570.0,115560.0,0.01659866]
[1760303654614,0.9092165,115570.0,115560.0,0.00054866]
[1760303655464,1.12648179,115570.0,115560.0,0.00054866]
[1760303655684,0.9092165,115570.0,115560.0,0.00054866]
[1760303656118,1.12648179,115570.0,115560.0,0.00054866]
[1760303656322,1.19274179,115570.0,115560.0,0.00054866]
[1760303657166,1.28146113,115570.0,115560.0,0.00054866]
[1760303657384,2.18953079,115570.0,115560.0,0.00054866]
[1760303657600,0.51310022,115540.0,115530.0,0.0007498]
[1760303657805,1.08246475,115540.0,115530.0,0.0007498]
[1760303658015,1.19293475,115540.0,115530.0,0.0007498]
[1760303659125,0.48406803,115540.0,115530.0,0.0007498]
[1760303659334,1.18972475,115540.0,115530.0,0.0007498]
[1760303663471,1.01662453,115540.0,115530.0,0.0007498]
[1760303663689,0.00014803,115540.0,115530.0,0.15002932]
[1760303663901,0.67218453,115540.0,115530.0,0.0007498]
[1760303664107,0.84528475,115540.0,115530.0,0.0007498]
[1760303664348,1.21345548,115540.0,115530.0,0.0007498]
[1760303664563,2.18207375,115540.0,115530.0,0.0007498]
[1760303665440,1.64630725,115540.0,115530.0,0.0007498]
[1760303665668,2.18207375,115540.0,115530.0,0.0007498]
[1760303666353,0.47641803,115540.0,115530.0,0.0007498]
[1760303666560,1.12223475,115540.0,115530.0,0.0007498]
[1760303666769,1.18528475,115540.0,115530.0,0.0007498]
[1760303668718,1.01218453,115540.0,115530.0,0.0007498]
[1760303668943,0.67218453,115540.0,115530.0,0.0007498]
[1760303669145,0.84528475,115540.0,115530.0,0.00053612]
[1760303669562,1.06225419,115540.0,115530.0,0.00053612]
[1760303669786,0.00045223,115540.0,115530.0,0.24055813]
[1760303670040,0.00045223,115540.0,115530.0,0.24034585]
[1760303670259,0.00045223,115540.0,115530.0,0.06702034]
[1760303670489,0.00045223,115540.0,115530.0,0.25346221]
[1760303670693,0.00045223,115540.0,115530.0,0.23992423]
[1760303670898,0.00045223,115540.0,115530.0,0.35939215]
[1760303671121,0.00045223,115540.0,115530.0,0.41483773]
[1760303671291,0.00045223,115540.0,115530.0,0.35917773]
[1760303671490,0.00045223,115540.0,115530.0,0.3589677]
[1760303671717,0.00045223,115540.0,115530.0,0.35875733]
[1760303672120,0.1731152,115530.0,115500.0,0.1985253]
[1760303672392,0.34,115530.0,115520.0,0.06575]
[1760303672625,0.34,115530.0,115520.0,0.06600796]
[1760303672828,0.3713,115530.0,115520.0,0.0223933]
[1760303673241,0.3713,115530.0,115520.0,0.02218014]
[1760303673448,0.3713,115530.0,115520.0,0.02196933]
[1760303673873,2.39860594,115530.0,115520.0,0.00034444]
[1760303674081,2.39860594,115530.0,115520.0,0.00013288]
[1760303674497,0.34,115510.0,115490.0,0.0159683]
[1760303674708,1.26557725,115510.0,115490.0,0.1052876]
[1760303674911,1.12373174,115510.0,115490.0,0.1052876]
[1760303675132,1.29687722,115510.0,115490.0,0.1052876]
[1760303675333,1.29687722,115510.0,115490.0,0.10507382]
[1760303675855,1.29687722,115510.0,115490.0,0.10485952]
[1760303676345,1.29687722,115510.0,115490.0,0.27782379]
[1760303676557,0.0313,115530.0,115500.0,0.4154656]
[1760303676775,1.028089,115530.0,115520.0,0.01938]
[1760303676983,0.23618019,115520.0,115490.0,0.188293]
[1760303677198,1.18678174,115520.0,115500.0,0.01905911]
[1760303677409,0.3713,115510.0,115490.0,0.01906]
[1760303677652,0.3713,115510.0,115490.0,0.28176468]
[1760303677866,0.3713,115510.0,115490.0,0.28155413]
[1760303678085,0.3713,115530.0,115500.0,0.4061676]
[1760303678290,0.3713,115530.0,115510.0,0.0144]
[1760303678291,1.19299881,115530.0,115510.0,0.0144]
[1760303678504,0.34,115530.0,115520.0,0.0931219]
[1760303678695,0.78387977,115540.0,115520.0,0.26603784]
[1760303678905,0.95698214,115540.0,115530.0,0.01734]
[1760303679120,1.33890214,115540.0,115530.0,0.01712846]
[1760303679339,0.03144803,115540.0,115530.0,0.03555846]
[1760303679566,0.03144803,115540.0,115530.0,0.38915611]
[1760303679567,0.00014803,115540.0,115530.0,0.38915611]
[1760303679792,0.00014803,115540.0,115530.0,0.42373246]
[1760303680231,0.00070255,115540.0,115530.0,0.42352105]
[1760303680440,0.00070255,115540.0,115530.0,0.42330935]
[1760303680642,0.00070255,115540.0,115530.0,0.4230956]
[1760303681072,0.00070255,115540.0,115530.0,0.4228817]
[1760303681298,0.00070255,115540.0,115530.0,0.42266805]
[1760303681771,0.00070255,115540.0,115530.0,0.42245785]
[1760303682193,0.00070255,115540.0,115530.0,0.42224369]
[1760303682414,0.00070255,115540.0,115530.0,0.42203056]
[1760303682861,0.00070255,115540.0,115530.0,0.4218166]
[1760303683072,0.00070255,115540.0,115530.0,0.42160332]
[1760303683509,0.06926707,115570.0,115560.0,0.21758722]
[1760303683721,0.06926707,115570.0,115560.0,0.45557603]
[1760303683934,0.06926707,115570.0,115560.0,0.44121097]
[1760303684138,0.10056707,115590.0,115560.0,0.44121097]
[1760303684139,0.40926707,115590.0,115580.0,0.20297976]
[1760303684345,0.06941556,115590.0,115580.0,0.40198647]
[1760303684557,0.00014849,115590.0,115580.0,0.40198647]
[1760303684771,0.00014849,115590.0,115580.0,0.40177446]
[1760303684984,0.00014849,115590.0,115580.0,0.40156407]
[1760303685203,0.00014849,115590.0,115580.0,0.40135319]
[1760303685676,0.00014849,115590.0,115580.0,0.40114297]
[1760303685916,0.00089837,115590.0,115580.0,0.40093216]
[1760303686128,0.08539393,115620.0,115610.0,0.20293635]
[1760303686341,0.06926707,115620.0,115610.0,0.39933587]
[1760303686551,0.10124707,115640.0,115630.0,0.0301519]
[1760303686765,0.12559432,115640.0,115630.0,0.04837174]
[1760303686969,0.05632725,115640.0,115630.0,0.22133723]
[1760303687404,0.02434725,115640.0,115630.0,0.22133723]
[1760303687608,0.00821473,115640.0,115630.0,0.04816156]
[1760303687821,0.00014847,115640.0,115630.0,0.35187657]
[1760303688686,0.00014847,115640.0,115630.0,0.17891108]
[1760303688896,0.00014847,115640.0,115630.0,0.17869852]
[1760303689340,0.00014847,115640.0,115630.0,0.35166401]
[1760303689751,0.00014847,115640.0,115630.0,0.17869852]
[1760303689967,0.00014847,115640.0,115630.0,0.047949]
[1760303690183,1.40461074,115640.0,115630.0,0.029519]
[1760303690395,0.34,115630.0,115610.0,0.01574]
[1760303690629,0.34,115630.0,115610.0,0.27826493]
[1760303690630,0.03198,115620.0,115610.0,0.27826493]
[1760303691043,0.03198,115620.0,115610.0,0.30841683]
[1760303691252,1.12441174,115620.0,115610.0,0.13542142]
[1760303691467,1.12441174,115620.0,115610.0,0.30841683]
[1760303691674,0.37198,115620.0,115610.0,0.30841683]
[1760303694064,1.34140219,115620.0,115610.0,0.0301519]
[1760303694273,0.34,115610.0,115590.0,0.01574]
[1760303694480,1.12441174,115610.0,115600.0,0.01574]
[1760303694834,1.16842174,115610.0,115600.0,0.0458919]
[1760303695051,0.37198,115610.0,115600.0,0.0458919]
[1760303695263,0.54497541,115610.0,115600.0,0.0458919]
[1760303695469,0.37198,115610.0,115600.0,0.0458919]
[1760303697367,0.34,115610.0,115600.0,0.19238035]
[1760303697582,0.41599,115610.0,115600.0,0.13542142]
[1760303697792,1.23151174,115610.0,115600.0,0.0301519]
[1760303698008,0.37198,115610.0,115600.0,0.0459919]
[1760303698439,0.54497541,115610.0,115600.0,0.0459919]
[1760303698650,1.34141715,115610.0,115600.0,0.0459919]
[1760303699055,1.84141715,115610.0,115600.0,0.0459919]
[1760303699898,1.90450715,115610.0,115600.0,0.0301519]
[1760303701189,1.84141715,115610.0,115600.0,0.0459919]
[1760303701865,1.84141715,115610.0,115580.0,0.25013158]
[1760303701866,0.51301721,115600.0,115580.0,0.01843]
[1760303702079,0.37198,115600.0,115580.0,0.28099922]
[1760303702522,1.52914692,115610.0,115600.0,0.20316228]
[1760303702523,0.84,115610.0,115600.0,0.20316228]
[1760303702758,0.84,115610.0,115600.0,0.17983142]
[1760303702978,0.84,115610.0,115600.0,0.3528418]
[1760303703631,0.84,115610.0,115600.0,0.17983142]
[1760303703843,0.84,115610.0,115600.0,0.3528418]
[1760303704068,1.84141715,115610.0,115600.0,0.0459919]
[1760303704308,0.51302128,115600.0,115580.0,0.01843]
[1760303704573,0.51302128,115600.0,115580.0,0.10795952]
[1760303704574,0.03198,115590.0,115580.0,0.10795952]
[1760303704783,0.03198,115590.0,115580.0,0.13811142]
[1760303704998,0.07599,115590.0,115580.0,0.13811142]
[1760303705434,0.37198,115600.0,115590.0,0.0301519]
[1760303705705,0.65209038,115600.0,115590.0,0.0301519]
[1760303705960,1.40452212,115600.0,115590.0,0.0301519]
[1760303706173,1.23151174,115600.0,115590.0,0.0301519]
[1760303706377,0.41599,115600.0,115590.0,0.0301519]
[1760303706597,0.34,115600.0,115590.0,0.41653553]
[1760303706805,0.34,115600.0,115590.0,0.40286676]
[1760303707028,0.5,115610.0,115590.0,0.40286676]
[1760303707238,0.5,115610.0,115600.0,0.08952952]
[1760303707239,1.34750174,115610.0,115600.0,0.08952952]
[1760303707441,0.87198,115610.0,115600.0,0.2625399]
[1760303707646,0.53198,115610.0,115600.0,0.3068499]